Cogmind - Beta 11 --- EXPLORER MODE // 2022.04.07 @ 21:57:34 Player: mystery Result: Destroyed by X-62 Marksman with Gauss Rifle Performance ------------- Evolutions (4) 2000 Regions Visited (11) 2200 Robots Destroyed (106) 530 Value Destroyed (4123) 4123 Prototype IDs (20) 400 Alien Tech Used (0) 0 Bonus (902) 902 TOTAL SCORE: 10155 Bonus ------- High Alert Combat Kills 180 Follower Combat Kills 226 Entered Garrisons 200 Used RIF Installer 500 Friendly Fire -204 Cogmind --------- Core Integrity 0/850 Matter 350/350 Energy 160/160 System Corruption 15% Temperature Cool (0) Movement Rolling (86) Location -6/Factory Parts ------- > --- POWER (2) -------- Light Nuclear Core > --- PROPULSION (4) --- Wheel Wheel Compact Wheel > --- UTILITY (8) ------ Medium Storage Unit Small Matter Pod Advanced Visual Processing Unit > --- WEAPON (2) ------- Powered Hammer Powered Hammer > --- INVENTORY (10) --- Carbon-fiber Leg Improved Carbon-fiber Leg Proton Cannon Proton Cannon Flak Gun Datajack Powered Hammer Powered Hammer Peak State ------------ > --- POWER ------------ Deuterium Engine Fission Core > --- PROPULSION ------- Carbon-fiber Leg Titanium Leg Titanium Leg VSS Leg > --- UTILITY ---------- Medium Storage Unit Advanced Visual Processing Unit Hacking Suite System Shield Relay Coupler [NC] Relay Coupler [Swarmer] Relay Coupler [Cutter] Relay Coupler [Grunt] > --- WEAPON ----------- Gauss Rifle Flak Cannon > --- INVENTORY -------- F-cell Engine Large Matter Pod Gravity Neutralizer Improved Sensor Array Reflective Plating Field Recycling Unit Datajack [Rating: 49] Favorites ----------- Power Deuterium Engine Engine Deuterium Engine Power Core Light Nuclear Core Propulsion Aluminum Leg Treads Light Treads Leg Aluminum Leg Wheel Compact Wheel Hover Unit Gravmag System Flight Unit VTOL Module Utility Medium Storage Unit Device Sensor Array Storage Medium Storage Unit Processor Advanced Visual Processing Unit Hackware Relay Coupler [NC] Protection Weapon Shielding Weapon Minigun Energy Gun Improved Lightning Gun Energy Cannon Proton Cannon Ballistic Gun Minigun Ballistic Cannon Light Cannon Launcher Advanced EMP Blaster Impact Weapon Powered Hammer Special Melee Weapon Datajack Build | -11 -10 -10 -9 -9 -9 -8 -8 -8 -8 -8 -6 ------- Run | Scr Mat Min Mat Min Exi Min Mat Sto Gar Rec Fac Slots Evolved 9 | . 1 . 2 . . . 2 . . . 4 Power 1 | . . . . . . . 1 . . . . Propulsion 2 | . . . 1 . . . 1 . . . . Utility 6 | . 1 . 1 . . . . . . . 4 Weapon . | . . . . . . . . . . . . Parts Attached 130 | 9 6 4 5 2 2 2 3 32 12 7 46 Power 18 | 1 2 . 1 . 1 . 2 4 1 . 6 Engine 13 | 1 2 . 1 . 1 . 1 2 1 . 4 Core 5 | . . . . . . . 1 2 . . 2 Reactor . | . . . . . . . . . . . . Propulsion 31 | 4 . 1 1 . . 2 . 10 1 4 8 Treads 2 | 2 . . . . . . . . . . . Leg 22 | 2 . 1 1 . . 2 . 10 1 4 1 Wheel 4 | . . . . . . . . . . . 4 Hover 1 | . . . . . . . . . . . 1 Flight 2 | . . . . . . . . . . . 2 Utility 40 | 2 2 3 1 . 1 . . 11 6 1 13 Device 20 | 1 . 1 1 . . . . 10 2 . 5 Storage 8 | 1 1 2 . . 1 . . 1 . . 2 Processor 2 | . . . . . . . . . 1 . 1 Hackware 8 | . . . . . . . . . 3 1 4 Protection 2 | . 1 . . . . . . . . . 1 Artifact . | . . . . . . . . . . . . Weapon 41 | 2 2 . 2 2 . . 1 7 4 2 19 Energy Gun 1 | . . . . . . . . 1 . . . Energy Cannon 3 | . . . . . . . . . . . 3 Ballistic Gun 13 | 2 . . 2 1 . . 1 3 2 . 2 Ballistic Cannon 12 | . 2 . . . . . . 2 1 1 6 Launcher 1 | . . . . . . . . 1 . . . Special Weapon . | . . . . . . . . . . . . Impact Weapon 3 | . . . . . . . . . . . 3 Slashing Weapon . | . . . . . . . . . . . . Piercing Weapon . | . . . . . . . . . . . . Special Melee Weapon 8 | . . . . 1 . . . . 1 1 5 Unidentified Prototypes 5 | . . 1 . . . . . 3 . . 1 Corrupted Parts 1 | . . . . . . . . . . . 1 System Corruption 1 | . . . . . . . . . . . 1 Parts Lost 33 | . . . . . . . . . 4 . 29 Power 8 | . . . . . . . . . 2 . 6 Propulsion 6 | . . . . . . . . . . . 6 Utility 14 | . . . . . . . . . 2 . 12 Weapon 5 | . . . . . . . . . . . 5 Highest Loss Streak 14 | . . . . . . . . . 3 . 14 To Critical Strikes 2 | . . . . . . . . . . . 2 Average Slot Usage (%) 87 | . 99 90 87 90 89 90 79 96 95 91 62 Engine 8 | . 12 12 10 10 9 10 8 8 11 8 2 Core 1 | . . . . . . . 4 8 2 . 1 Leg 26 | . 25 25 29 30 30 30 25 32 33 33 8 Device 12 | . 6 8 18 20 20 20 16 16 12 . 5 Storage 11 | . 18 15 10 10 10 10 8 14 9 8 7 Processor 2 | . . . . . . . . . 1 8 8 Hackware 3 | . . . . . . . . . 6 15 10 Protection 1 | . 12 3 . . . . . . . . . Ballistic Gun 10 | . 8 . 15 19 20 20 16 9 7 . 1 Ballistic Cannon 6 | . 16 25 3 . . . . 6 8 14 2 Naked Turns . | . . . . . . . . . . . . Heaviest Build 49 | 19 24 29 34 34 34 34 39 43 42 29 49 Greatest Support 76 | 40 20 20 33 33 33 38 38 76 74 62 64 Greatest Overweight (x) 11 | . 1 1 1 1 1 1 1 1 . . 11 Average Overweight (x) . | . . 1 . . . . . . . . 1 Largest Inventory Capacity 10 | 10 10 10 10 10 10 10 10 10 10 10 10 Average Capacity 9 | 9 10 10 10 10 10 10 10 10 10 10 10 Most Carried 10 | 5 7 10 10 10 10 10 10 10 10 10 10 Average Carried 8 | 3 5 9 9 9 9 9 9 9 9 9 4 Final Capacity 10 | 10 10 10 10 10 10 10 10 10 10 10 10 Final Carried 10 | 5 7 10 10 10 9 10 10 10 10 10 8 Class Distribution -------------------- 88% | Hacker-Mutant 6% | Commander-Mutant 3% | Bothacker-Mutant Dominant Class ---------------- Hacker-Mutant | -10/Materials Hacker-Mutant | -10/Mines Hacker-Mutant | -9/Materials Hacker-Mutant | -9/Mines Hacker-Mutant | -9/Exiles Hacker-Mutant | -8/Mines Hacker-Mutant | -8/Materials Hacker-Mutant | -8/Storage Hacker-Mutant | -8/Garrison Commander-Mutant | -8/Recycling Hacker-Mutant | -6/Factory Resources | -11 -10 -10 -9 -9 -9 -8 -8 -8 -8 -8 -6 ----------- Run | Scr Mat Min Mat Min Exi Min Mat Sto Gar Rec Fac Matter Collected 3510 | 182 387 88 217 84 . 168 94 870 526 193 701 Remotely . | . . . . . . . . . . . . Salvage Created 3745 | . 243 . 258 . . 449 122 991 431 24 1227 Parts 201 | . 24 . 28 . . 16 4 64 23 6 36 Haulers Intercepted . | . . . . . . . . . . . . Recyclers Shooed 2 | . 1 . . . . . . . . 1 . Parts Field Recycled 7 | . . . . . . . . . 7 . . Retrieved Matter 49 | . . . . . . . . . 49 . . Parts Self-Destructed . | . . . . . . . . . . . . Prevented . | . . . . . . . . . . . . Kills | -11 -10 -10 -9 -9 -9 -8 -8 -8 -8 -8 -6 ------- Run | Scr Mat Min Mat Min Exi Min Mat Sto Gar Rec Fac Combat Hostiles Destroyed 87 | . 7 . 8 2 . 6 1 24 14 6 19 Melee 4 | . . . . . . . . . . . 4 Guns 45 | . 5 . 6 2 . 6 1 13 7 . 5 Cannons 32 | . 2 . 2 . . . . 11 7 6 4 Classes Destroyed 15 | . 4 . 1 . . 2 1 2 . 1 4 Worker 4 | . 1 . . . . . . . . . 3 Builder 1 | . . . . . . . . . . . 1 Recycler 5 | . . . . . . 1 1 . . . 3 Operator 2 | . . . . . . . . 1 . . 1 Drone 6 | . . . . . . . . . . 6 . Watcher 6 | . 3 . 2 . . . . 1 . . . Swarmer 15 | . 3 . 4 . . . . 2 4 . 2 Grunt 27 | . 4 . 3 . . 5 . 9 4 . 2 Brawler 2 | . . . . . . . . 1 . . 1 Duelist 2 | . . . . . . 1 . . 1 . . Protector 1 | . . . . . . . . . . . 1 Sentry 17 | . . . 1 2 . . . 10 4 . . Specialist 2 | . . . . . . . . . . . 2 Hunter 11 | . . . . . . . 1 2 1 . 7 Programmer 5 | . . . . . . . . . . . 5 Best Kill Streak 4 | . 4 . 4 2 . 2 2 4 3 1 3 Combat Bots Only 4 | . 3 . 4 2 . 2 1 4 3 1 3 Max Kills in Single Turn 2 | . 2 . 1 1 . 1 1 1 1 1 1 Gunslinging 1 | . 1 . . . . . . . . . . Exploded . | . . . . . . . . . . . . Melee 1 | . . . . . . . . . . . 1 Uniques/NPCs Destroyed . | . . . . . . . . . . . . Combat | -11 -10 -10 -9 -9 -9 -8 -8 -8 -8 -8 -6 -------- Run | Scr Mat Min Mat Min Exi Min Mat Sto Gar Rec Fac Damage Taken 5476 | . 127 . 162 206 . 92 91 740 703 36 3319 Core 1164 | . 25 . . 17 . 11 11 140 90 9 861 Absorbed by Shields 3 | . . . . . . . . . . 3 . Redirected to Shielding 1 | . 1 . . . . . . . . . . Regen/Repaired (Parts) 300 | . . . . . . . . 300 . . . Core Remaining (%) 84 | 100 . 90 . . . 93 . . . 54 . Volleys Fired 276 | . 26 . 19 8 . 16 8 63 54 17 65 Largest 2 | . 2 . 2 2 . 2 2 2 2 2 2 Hottest 85 | . 70 . 70 50 . 50 50 69 69 83 85 Shots Fired 501 | . 52 . 38 16 . 32 16 126 105 25 91 Gun 301 | . 32 . 30 16 . 32 16 70 53 . 52 Cannon 200 | . 20 . 8 . . . . 56 52 25 39 Launcher . | . . . . . . . . . . . . Special . | . . . . . . . . . . . . Kinetic 495 | . 52 . 38 16 . 32 16 126 105 25 85 Thermal 6 | . . . . . . . . . . . 6 Explosive . | . . . . . . . . . . . . Electromagnetic . | . . . . . . . . . . . . Robot Hit Streak 44 | . 9 . 15 30 . 44 9 15 24 27 20 Robot Miss Streak 7 | . 2 . 2 . . 1 1 2 2 7 3 Penetration Max 1 | . . . . . . . . . . . 1 Secondary Targets 5 | . 1 . 3 . . 1 . . . . . Max Gunslinging Chain 1 | . 1 . 1 . . 1 . . . . . Shots Hit Robots 468 | . 38 . 30 15 . 27 12 93 77 35 141 Core Hits 187 | . 16 . 11 3 . 14 4 39 25 12 63 Critical Kills 6 | . . . . . . . . 4 . . 2 Critical Parts Destroyed 14 | . 1 . . . . 1 . . . . 12 Critical Strikes 29 | . 2 . . . . 1 . 8 2 1 15 Meltdown 1 | . . . . . . . . . . . 1 Destroy 7 | . 1 . . . . 1 . 4 . . 1 Blast 8 | . 1 . . . . . . 4 2 1 . Smash 13 | . . . . . . . . . . . 13 Melee Attacks 87 | . . . . . . . . . 1 21 65 Impact 44 | . . . . . . . . . . . 44 Slashing . | . . . . . . . . . . . . Piercing . | . . . . . . . . . . . . Sneak Attacks 33 | . . . . . . . . . . 19 14 Combat Hostiles 6 | . . . . . . . . . . . 6 Follow-up Attacks 5 | . . . . . . . . . . . 5 Damage Inflicted 9543 | . 495 . 528 258 . 475 155 1809 1485 351 3987 Guns 4197 | . 265 . 421 258 . 475 155 871 681 . 1071 Cannons 3277 | . 226 . 107 . . . . 938 804 335 867 Explosions 88 | . . . . . . . . . . . 88 Melee 1961 | . . . . . . . . . . . 1961 Ramming 20 | . 4 . . . . . . . . 16 . Kinetic 7285 | . 491 . 528 258 . 475 155 1809 1485 335 1749 Thermal 189 | . . . . . . . . . . . 189 Explosive 88 | . . . . . . . . . . . 88 Electromagnetic . | . . . . . . . . . . . . Impact 1961 | . . . . . . . . . . . 1961 Slashing . | . . . . . . . . . . . . Piercing . | . . . . . . . . . . . . Highest Corruption 15 | . 1 1 . . . . . . . . 15 Average Corruption 3 | . 1 1 . . . . . . . . 7 Corruption Purged . | . . . . . . . . . . . . Corruption Blocked . | . . . . . . . . . . . . Effects 51 | . 7 7 . . . . . . . . 37 Message Errors 15 | . 3 1 . . . . . . . . 11 Matter Fused 12 | . 2 2 . . . . . . . . 8 Heat Flow Errors 5 | . 1 1 . . . . . . . . 3 Energy Discharges 8 | . . 2 . . . . . . . . 6 Parts Rejected 1 | . . . . . . . . . . . 1 Data Loss (minor) 8 | . 1 . . . . . . . . . 7 Data Loss (major) 1 | . . . . . . . . . . . 1 Alerts 1 | . . 1 . . . . . . . . . Overload Shots . | . . . . . . . . . . . . Overflow Damage 961 | . 1 . . . . . . 15 13 . 932 Projectiles 39 | . 1 . . . . . . 15 13 . 10 Explosions 9 | . . . . . . . . . . . 9 Melee 913 | . . . . . . . . . . . 913 Knockbacks 60 | . 2 . 1 . . . . 7 10 5 35 Impact 9 | . 1 . . . . . . . . . 8 Kinetic 49 | . 1 . 1 . . . . 7 10 5 25 Secondary 2 | . . . . . . . . . . . 2 Self-Inflicted Damage 121 | . . . . . . . . . . . 121 Shots 3 | . . . . . . . . . . . 3 Rammed . | . . . . . . . . . . . . Targets Rammed 4 | . 2 . . . . . . . . 2 . Kicked 4 | . 2 . . . . . . . . 2 . Crushed . | . . . . . . . . . . . . Highest Temperature 261 | . 253 108 33 32 . 33 . 210 261 12 229 Average Temperature 52 | . 41 61 13 9 . 10 . 58 76 5 39 Received Heat Transfer 1404 | . 63 . 99 54 . 99 9 405 396 . 279 Effects 3 | . . . . . . . . . 3 . . Interference 3 | . . . . . . . . . 3 . . Siege Activations . | . . . . . . . . . . . . Robots Corrupted . | . . . . . . . . . . . . Combat Hostiles . | . . . . . . . . . . . . Parts Fried 7 | . . . . . . . . . . . 7 Impact Corruptions 35 | . . . . . . . . . . . 35 Robots Melted 1 | . . . . . . . . . . . 1 Combat Hostiles 1 | . . . . . . . . . . . 1 Parts Melted 1 | . . . . . . . . . . . 1 Heat Transferred 222 | . . . . . . . . . . . 222 Parts Sabotaged . | . . . . . . . . . . . . Parts Stolen . | . . . . . . . . . . . . Parts Stripped . | . . . . . . . . . . . . Power Chain Reactions . | . . . . . . . . . . . . Missiles Intercepted . | . . . . . . . . . . . . Alert | -11 -10 -10 -9 -9 -9 -8 -8 -8 -8 -8 -6 ------- Run | Scr Mat Min Mat Min Exi Min Mat Sto Gar Rec Fac Peak Influence 1015 | . 195 11 256 73 . 97 64 359 419 210 1015 Initial 937 | . . 11 . 2 . . . 13 15 136 937 Average 137 | . 74 4 62 13 . 41 35 111 266 96 399 Maximum Alert Level 3 | . . . 1 . . . . 1 2 1 3 Low Security (%) 79 | 100 100 100 92 100 . 100 100 72 32 94 44 Level 1 12 | . . . 7 . . . . 27 54 5 11 Level 2 4 | . . . . . . . . . 12 . 21 Level 3 4 | . . . . . . . . . . . 23 Level 4 . | . . . . . . . . . . . . Level 5 . | . . . . . . . . . . . . High Security . | . . . . . . . . . . . . Max Security . | . . . . . . . . . . . . Squads Dispatched 17 | . 2 . 2 . . . . 6 . . 7 Investigation 6 | . 2 . . . . . . 4 . . . Extermination 2 | . . . . . . . . . . . 2 Reinforcement 9 | . . . 2 . . . . 2 . . 5 Assault . | . . . . . . . . . . . . Garrison . | . . . . . . . . . . . . Intercept . | . . . . . . . . . . . . Searches Triggered 2 | . . . . . . . . . . . 2 Construction Impeded 1 | . . . . . . . . . . . 1 Haulers Reinforced 1 | . . . . . . . . . . . 1 Active Scanning Responses . | . . . . . . . . . . . . Cargo Convoy Interrupts 1 | . . . . . . . . . . . 1 Stealth | -11 -10 -10 -9 -9 -9 -8 -8 -8 -8 -8 -6 --------- Run | Scr Mat Min Mat Min Exi Min Mat Sto Gar Rec Fac Distress Signals 6 | . . . 3 . . . . 3 . . . Communications Jammed . | . . . . . . . . . . . . Distress Signals . | . . . . . . . . . . . . Times Spotted 164 | . 17 . 13 5 . 7 2 39 19 22 40 Peak Tracking Total 9 | . 4 . 4 3 . 2 1 9 7 4 7 Tactical Retreats 9 | . 3 . 1 . . . . 2 1 . 2 Traps | -11 -10 -10 -9 -9 -9 -8 -8 -8 -8 -8 -6 ------- Run | Scr Mat Min Mat Min Exi Min Mat Sto Gar Rec Fac Traps Triggered 13 | . 3 . 1 . . . . 5 4 . . Indirectly . | . . . . . . . . . . . . Trap Hack Attempts . | . . . . . . . . . . . . Triggered . | . . . . . . . . . . . . Disarmed 13 | . 5 . . . . . . 8 . . . Reprogrammed . | . . . . . . . . . . . . Reused . | . . . . . . . . . . . . Traps Extracted . | . . . . . . . . . . . . Installed . | . . . . . . . . . . . . Triggered . | . . . . . . . . . . . . Machines | -11 -10 -10 -9 -9 -9 -8 -8 -8 -8 -8 -6 ---------- Run | Scr Mat Min Mat Min Exi Min Mat Sto Gar Rec Fac Machines Disabled 13 | . 1 . . . . . . 3 3 1 5 Max in Single Turn 3 | . 1 . . . . . . 1 1 . 3 Garrison Relay 2 | . . . . . . . . . 2 . . Machines Sabotaged . | . . . . . . . . . . . . Garrisons Compromised . | . . . . . . . . . . . . Overloaded Fab Kills . | . . . . . . . . . . . . Hacking | -11 -10 -10 -9 -9 -9 -8 -8 -8 -8 -8 -6 --------- Run | Scr Mat Min Mat Min Exi Min Mat Sto Gar Rec Fac Machines Accessed 38 | . 8 1 4 . 4 . 1 13 . 7 . Terminals 23 | . 7 . 2 . . . . 8 . 6 . Fabricators . | . . . . . . . . . . . . Repair Stations 2 | . . . . . . . . 2 . . . Recycling Units 4 | . 1 . . . . . . 2 . 1 . Scanalyzers 3 | . . . 2 . . . 1 . . . . Garrison Access 1 | . . . . . . . . 1 . . . Total Hacks 131 | . 20 1 8 . 49 . 2 37 . 14 . Successful 104 | . 11 1 5 . 49 . 2 27 . 9 . Failed 27 | . 9 . 3 . . . . 10 . 5 . Catastrophic 3 | . . . . . . . . 2 . 1 . Database Lockouts . | . . . . . . . . . . . . Manual 2 | . 1 . . . 1 . . . . . . Terminals 57 | . 19 . 4 . . . . 22 . 12 . Fabricators . | . . . . . . . . . . . . Repair Stations 11 | . . . . . . . . 11 . . . Recycling Units 6 | . 1 . . . . . . 3 . 2 . Scanalyzers 6 | . . . 4 . . . 2 . . . . Garrison Access 1 | . . . . . . . . 1 . . . Terminal Hacks 84 | . 10 1 4 . 49 . . 13 . 7 . Record 53 | . 2 . . . 49 . . 1 . 1 . Part Schematic 1 | . . . . . . . . 1 . . . Robot Analysis 2 | . 1 . . . . . . . . 1 . Prototype ID Bank 9 | . 3 . 2 . . . . 2 . 2 . Open Door 4 | . . 1 . . . . . 3 . . . Level Access Points 2 | . . . 1 . . . . . . 1 . Branch Access Points 2 | . . . 1 . . . . . . 1 . Terminal Index 1 | . 1 . . . . . . . . . . Repair Station Index 1 | . 1 . . . . . . . . . . Alert Level 1 | . . . . . . . . . . 1 . Locate Traps 2 | . 1 . . . . . . 1 . . . Disarm Traps 3 | . 1 . . . . . . 2 . . . Dispatch Records 1 | . . . . . . . . 1 . . . Hauler Manifests 1 | . . . . . . . . 1 . . . Registered Prototypes 1 | . . . . . . . . 1 . . . Fabricator Hacks . | . . . . . . . . . . . . Repair Station Hacks 10 | . . . . . . . . 10 . . . Scan Component 5 | . . . . . . . . 5 . . . Repair 5 | . . . . . . . . 5 . . . Recycling Unit Hacks 6 | . 1 . . . . . . 3 . 2 . Report Inventory 2 | . . . . . . . . 1 . 1 . Retrieve Matter 3 | . 1 . . . . . . 1 . 1 . Retrieve Components 1 | . . . . . . . . 1 . . . Scanalyzer 3 | . . . 1 . . . 2 . . . . Insert Component 2 | . . . 1 . . . 1 . . . . Analyze 1 | . . . . . . . 1 . . . . Garrison Access Hacks 1 | . . . . . . . . 1 . . . Unlock Access 1 | . . . . . . . . 1 . . . Unauthorized Hacks . | . . . . . . . . . . . . Terminals . | . . . . . . . . . . . . Fabricators . | . . . . . . . . . . . . Repair Stations . | . . . . . . . . . . . . Recycling Units . | . . . . . . . . . . . . Scanalyzers . | . . . . . . . . . . . . Garrison Access . | . . . . . . . . . . . . Data Cores Recovered . | . . . . . . . . . . . . Used . | . . . . . . . . . . . . Hacking Detections 17 | . 5 . 3 . . . . 6 . 3 . Full Trace Events 7 | . 3 . . . . . . 4 . . . Feedback Events . | . . . . . . . . . . . . Feedback Blocked . | . . . . . . . . . . . . Robot Schematics Acquired . | . . . . . . . . . . . . Robots Built . | . . . . . . . . . . . . Authchips . | . . . . . . . . . . . . Time . | . . . . . . . . . . . . Total Robot Build Rating . | . . . . . . . . . . . . Part Schematics Acquired 2 | . . . . . . . 1 1 . . . Parts Built . | . . . . . . . . . . . . Authchips . | . . . . . . . . . . . . Time . | . . . . . . . . . . . . Total Part Build Rating . | . . . . . . . . . . . . Parts Repaired 5 | . . . . . . . . 5 . . . Time 178 | . . . . . . . . 178 . . . Parts Recycled . | . . . . . . . . . . . . Recycled Matter . | . . . . . . . . . . . . Retrieved Matter . | . . . . . . . . . . . . Retrieved Components 9 | . . . . . . . . 9 . . . Parts Scanalyzed 2 | . . . 1 . . . 1 . . . . Part Schematics Acquired 1 | . . . . . . . 1 . . . . Parts Damaged . | . . . . . . . . . . . . Bothacking | -11 -10 -10 -9 -9 -9 -8 -8 -8 -8 -8 -6 ------------ Run | Scr Mat Min Mat Min Exi Min Mat Sto Gar Rec Fac Used RIF Installer 1 | . . . . . . . . . 1 . . Robots Hacked 13 | . . . . . . . . . 1 3 9 Non-combat 5 | . . . . . . . . . . 3 2 Combat 8 | . . . . . . . . . 1 . 7 Robot Hacks Applied 18 | . . . . . . . . . 1 4 13 parse_system 5 | . . . . . . . . . 1 1 3 no_distress 1 | . . . . . . . . . . . 1 map_walls 1 | . . . . . . . . . . 1 . disarm_traps 1 | . . . . . . . . . . . 1 block_reporting 1 | . . . . . . . . . . . 1 relay_feed 1 | . . . . . . . . . . . 1 link_fov 2 | . . . . . . . . . . 2 . overwrite_iff 1 | . . . . . . . . . . . 1 formatsys_high 5 | . . . . . . . . . . . 5 Relay Couplers Released 9 | . . . . . . . . . 9 . . Machine Destruction 9 | . . . . . . . . . 9 . . Attached 6 | . . . . . . . . . 3 1 2 Fabnet Peak Effective % . | . . . . . . . . . . . . Robots Rewired 9 | . . . . . . . . . . 9 . Allies Hacked 1 | . . . . . . . . . . . 1 Hacks Repelled . | . . . . . . . . . . . . Allies | -11 -10 -10 -9 -9 -9 -8 -8 -8 -8 -8 -6 -------- Run | Scr Mat Min Mat Min Exi Min Mat Sto Gar Rec Fac Total Allies 18 | . . . . 3 . . . . . 9 6 Largest Group 9 | . . . . 3 3 3 . . . 9 3 Highest-Rated Group 128 | . . . . 40 40 40 . . . 128 60 Highest-Rated Ally 29 | . . . . 16 16 16 . . . 27 29 Total Orders 27 | . . 3 3 3 . 1 2 6 . 7 2 ROAM 10 | . . . . . . 1 1 6 . 1 1 FOLLOW 3 | . . . . . . . 1 . . 2 . GUARD 1 | . . . . . . . . . . 1 . AID 5 | . . . . 2 . . . . . 2 1 COLLECT 1 | . . . . . . . . . . 1 . EXPLORE 6 | . . 3 2 1 . . . . . . . RETURN 1 | . . . 1 . . . . . . . . Ally Attacks 255 | . . 1 2 8 . 13 1 7 . 204 19 Total Damage 1512 | . . . . 54 . 141 . . . 1048 269 Kills 35 | . . . . 3 . 2 . . . 25 5 Allies Corrupted . | . . . . . . . . . . . . Allies Melted . | . . . . . . . . . . . . Intel | -11 -10 -10 -9 -9 -9 -8 -8 -8 -8 -8 -6 ------- Run | Scr Mat Min Mat Min Exi Min Mat Sto Gar Rec Fac Robot Analysis Total 2 | . 1 . . . . . . . . 1 . Derelict Logs Recovered 1 | . . 1 . . . . . . . . . Drone Launches 37 | . . 16 2 4 . 1 2 12 . . . Drone Recoveries 21 | . . . 15 . . . . 6 . . . Exploration | -11 -10 -10 -9 -9 -9 -8 -8 -8 -8 -8 -6 ------------- Run | Scr Mat Min Mat Min Exi Min Mat Sto Gar Rec Fac Turns Passed 11669 | 127 987 798 564 1124 1705 843 207 1649 811 1123 1731 Spaces Moved 6558 | 71 535 405 277 574 898 560 106 954 490 821 867 Core 139 | 3 . . . . . . . . . . 136 Treads 54 | 54 . . . . . . . . . . . Legs 6000 | 14 535 405 277 574 898 560 106 954 490 821 366 Wheels 255 | . . . . . . . . . . . 255 Hover 97 | . . . . . . . . . . . 97 Flight 13 | . . . . . . . . . . . 13 Fastest Speed 50 | 50 120 190 120 120 120 120 120 120 122 113 60 Average Speed 153 | 147 160 190 178 187 189 141 161 125 122 118 150 Slowest Speed 600 | 160 190 190 190 190 190 190 190 190 122 122 600 Overloaded Moves . | . . . . . . . . . . . . Propulsion Burnouts . | . . . . . . . . . . . . Robots Hopped . | . . . . . . . . . . . . Cave-ins Triggered . | . . . . . . . . . . . . Exploration Rate (%) 63 | 5 92 97 39 96 92 92 12 87 45 98 10 Regions Visited 11 Branch Regions 6 Pre-discovered Areas 1 | . . . . . 1 . . . . . . Known Exits Taken 10 | 1 1 1 1 1 1 1 1 1 . 1 . Unknown Exits Taken . | . . . . . . . . . . . . Scrap Searched 4 | . . 1 . 2 . 1 . . . . . Spaces Dug . | . . . . . . . . . . . . Terrain Destroyed 24 | . . . . . . . . 5 . 2 17 Melee . | . . . . . . . . . . . . Projectile 7 | . . . . . . . . 5 . 2 . AOE 17 | . . . . . . . . . . . 17 Terrain Rammed . | . . . . . . . . . . . . Walls Destroyed . | . . . . . . . . . . . . Machines Disabled . | . . . . . . . . . . . . Actions | -11 -10 -10 -9 -9 -9 -8 -8 -8 -8 -8 -6 --------- Run | Scr Mat Min Mat Min Exi Min Mat Sto Gar Rec Fac Total 7654 | 93 613 434 317 608 903 589 130 1302 608 936 1121 Wait 458 | . 36 16 9 21 . 5 12 215 35 59 50 Move 6546 | 70 534 404 276 573 897 559 105 953 488 820 867 Hop . | . . . . . . . . . . . . Pick Up 80 | 13 6 6 3 2 1 3 . 10 5 2 29 Fast Attach 26 | . . . 4 . 1 . 1 17 1 . 2 Attach 55 | 7 3 1 1 . . . 1 5 4 . 33 Detach 8 | . . . . . . . 1 2 2 . 3 Swap 49 | 2 3 3 . 2 1 2 1 10 7 7 11 Drop 64 | 1 3 4 5 2 3 4 1 27 4 6 4 Fire 276 | . 26 . 19 8 . 16 8 63 54 17 65 Melee 79 | . . . . . . . . . 1 21 57 Ram . | . . . . . . . . . . . . Kick 4 | . 2 . . . . . . . . 2 . Crush . | . . . . . . . . . . . . Escape Stasis 2 | . . . . . . . . . 2 . . Rewire 7 | . . . . . . . . . 5 2 . Trap . | . . . . . . . . . . . . Miscellaneous . | . . . . . . . . . . . . Route ------- -11/Scrapyard -10/Materials (discovered 4 exits: *Mat x3 / *Min) -10/Mines (discovered 2 exits: *Mat x2) -9/Materials (discovered 5 exits: Mat x3 / *Min x2) -9/Mines (discovered 3 exits: *Mat x2 / *Exi) -9/Exiles (discovered 2 exits: *Min x2) -8/Mines -8/Materials -8/Storage (discovered 2 exits: *Fac / Gar) -8/Garrison -8/Recycling -6/Factory History --------- Turn | Location | Event 2 | -11/Scrapyard | Met Revision 17 21 | -11/Scrapyard | Identified exit to Materials 21 | -11/Scrapyard | Discovered exit to Materials (range 15) 128 | -11/Scrapyard | Entered Materials 128 | -10/Materials | Evolved 1 slot: Utility x1 222 | -10/Materials | Identified exit to Materials 222 | -10/Materials | Discovered exit to Materials (range 14) 276 | -10/Materials | Identified exit to Mines 276 | -10/Materials | Discovered exit to Mines (range 13) 301 | -10/Materials | Build established: Hacker-Mutant 669 | -10/Materials | Discovered exit to Materials (range 10) 915 | -10/Materials | Discovered exit to Materials (range 9) 1115 | -10/Materials | Entered Mines 1201 | -10/Mines | Discovered exit to Materials (range 15) 1300 | -10/Mines | Found the Drone Emporium 1310 | -10/Mines | Found Prototype Device 1322 | -10/Mines | Identified Bomb Drone Bay 1385 | -10/Mines | Discovered exit to Materials (range 32) 1524 | -10/Mines | Received a Rocket Launcher from a helpful Derelict 1638 | -10/Mines | Learned 2 Materials zone layouts 1913 | -10/Mines | Entered Materials 1913 | -9/Materials | Accompanied by 15 allies 1913 | -9/Materials | Evolved 2 slots: Propulsion x1, Utility x1 1914 | -9/Materials | Identified exit to Materials 1914 | -9/Materials | Identified exit to Mines 2477 | -9/Materials | Entered Mines 2615 | -9/Mines | Discovered exit to Materials (range 5) 2875 | -9/Mines | Deemed a non-threat by the Exiles lab entrance 2877 | -9/Mines | Identified exit to Exiles 2877 | -9/Mines | Discovered exit to Exiles (range 5) 3052 | -9/Mines | Assisted by bots powering up and referring to "LRC-V3" 3188 | -9/Mines | Discovered exit to Materials (range 9) 3601 | -9/Mines | Entered Exiles 3601 | -9/Exiles | Accompanied by 3 allies 3667 | -9/Exiles | Met 8R-AWN 3707 | -9/Exiles | Met EX-HEX 3818 | -9/Exiles | Met EX-DEC 4009 | -9/Exiles | Identified exit to Mines 4009 | -9/Exiles | Discovered exit to Mines (range 12) 4119 | -9/Exiles | Met EX-BIN 4412 | -9/Exiles | Visited The Gauntlet 4655 | -9/Exiles | Learned location of Zion (-6) 5008 | -9/Exiles | Discovered exit to Mines (range 14) 5306 | -9/Exiles | Entered Mines 5306 | -8/Mines | Accompanied by 3 allies 5485 | -8/Mines | Discovered exit to Materials (range 15) 6149 | -8/Mines | Entered Materials 6149 | -8/Materials | Evolved 2 slots: Power x1, Propulsion x1 6250 | -8/Materials | Identified exit to Storage 6250 | -8/Materials | Discovered exit to Storage (range 16) 6356 | -8/Materials | Entered Storage 6356 | -8/Storage | Accompanied by 1 ally 6619 | -8/Storage | Repaired System Shield 6653 | -8/Storage | Repaired Lrg. Battery 7323 | -8/Storage | Identified exit to Factory 7323 | -8/Storage | Discovered exit to Factory (range 5) 7912 | -8/Storage | Repaired Carbon-fiber Leg 7952 | -8/Storage | Repaired Assault Cannon 7991 | -8/Storage | Repaired Titanium Leg 8004 | -8/Storage | Identified exit to Garrison 8005 | -8/Storage | Entered Garrison 8012 | -8/Garrison | Installed Relay Interface Framework 8034 | -8/Garrison | Triggered checkpoint 8096 | -8/Garrison | Triggered checkpoint 8131 | -8/Garrison | Garrison Relay disabled 8352 | -8/Garrison | Triggered checkpoint 8390 | -8/Garrison | Identified exit to Recycling 8390 | -8/Garrison | Discovered exit to Recycling (range 12) 8456 | -8/Garrison | Triggered checkpoint 8630 | -8/Garrison | Lost 3 parts (1p2u) 8716 | -8/Garrison | Garrison Relay disabled 8816 | -8/Garrison | Entered Recycling 8876 | -8/Recycling | Spotter reported a threat 8877 | -8/Recycling | Spotter reported a threat 8905 | -8/Recycling | Spotter reported a threat 8934 | -8/Recycling | Spotter reported a threat 8958 | -8/Recycling | Spotter reported a threat 8960 | -8/Recycling | Spotter reported a threat 8962 | -8/Recycling | Spotter reported a threat 9023 | -8/Recycling | Build established: Bothacker-Mutant 9063 | -8/Recycling | Spotter reported a threat 9101 | -8/Recycling | Spotter reported a threat 9107 | -8/Recycling | Spotter reported a threat 9116 | -8/Recycling | Spotter reported a threat 9119 | -8/Recycling | Identified exit to Factory 9119 | -8/Recycling | Discovered exit to Factory (range 7) 9125 | -8/Recycling | Spotter reported a threat 9139 | -8/Recycling | Spotter reported a threat 9160 | -8/Recycling | Spotter reported a threat 9178 | -8/Recycling | Spotter reported a threat 9192 | -8/Recycling | Spotter reported a threat 9221 | -8/Recycling | Spotter reported a threat 9232 | -8/Recycling | Spotter reported a threat 9232 | -8/Recycling | Spotter reported a threat 9274 | -8/Recycling | Spotter reported a threat 9283 | -8/Recycling | Spotter reported a threat 9283 | -8/Recycling | Spotter reported a threat 9306 | -8/Recycling | Spotter reported a threat 9327 | -8/Recycling | Spotter reported a threat 9339 | -8/Recycling | Spotter reported a threat 9359 | -8/Recycling | Spotter reported a threat 9364 | -8/Recycling | Build established: Commander-Mutant 9385 | -8/Recycling | Spotter reported a threat 9412 | -8/Recycling | Spotter reported a threat 9438 | -8/Recycling | Spotter reported a threat 9463 | -8/Recycling | Spotter reported a threat 9464 | -8/Recycling | Spotter reported a threat 9494 | -8/Recycling | Spotter reported a threat 9517 | -8/Recycling | Spotter reported a threat 9523 | -8/Recycling | Spotter reported a threat 9551 | -8/Recycling | Spotter reported a threat 9563 | -8/Recycling | Spotter reported a threat 9570 | -8/Recycling | Spotter reported a threat 9589 | -8/Recycling | Spotter reported a threat 9604 | -8/Recycling | Spotter reported a threat 9623 | -8/Recycling | Spotter reported a threat 9640 | -8/Recycling | Spotter reported a threat 9640 | -8/Recycling | Spotter reported a threat 9642 | -8/Recycling | Spotter reported a threat 9642 | -8/Recycling | Spotter reported a threat 9693 | -8/Recycling | Spotter reported a threat 9717 | -8/Recycling | Spotter reported a threat 9720 | -8/Recycling | Spotter reported a threat 9744 | -8/Recycling | Spotter reported a threat 9747 | -8/Recycling | Spotter reported a threat 9793 | -8/Recycling | Spotter reported a threat 9797 | -8/Recycling | Spotter reported a threat 9844 | -8/Recycling | Spotter reported a threat 9844 | -8/Recycling | Spotter reported a threat 9849 | -8/Recycling | Spotter reported a threat 9867 | -8/Recycling | Spotter reported a threat 9895 | -8/Recycling | Spotter reported a threat 9902 | -8/Recycling | Spotter reported a threat 9939 | -8/Recycling | Entered Factory 9939 | -6/Factory | Accompanied by 3 allies 9939 | -6/Factory | Evolved 4 slots: Utility x4 10249 | -6/Factory | Build established: Hacker-Mutant 10289 | -6/Factory | Search patrols dispatched 10418 | -6/Factory | Lost 3 parts (1p2u) 10462 | -6/Factory | Cargo convoy interrupted 10594 | -6/Factory | Core integrity fell below 50% 10639 | -6/Factory | Search patrols dispatched 10639 | -6/Factory | Lost 14 parts (2p4n5u3w) 11096 | -6/Factory | System corruption reached 10% 11232 | -6/Factory | Core integrity fell below 20% 11258 | -6/Factory | Lost 3 parts (1p1n1u) 11659 | -6/Factory | Lost 3 parts (1p2u) 11670 | -6/Factory | Destroyed by X-62 Marksman with Gauss Rifle Last Messages --------------- 11622_ System corrupted: Terrain Scanner rejected. 11623_ G-50 Soldier destroyed. 11626_ Powered Hammer follow-up attack on B-48 Gladiator. 11626_ B-48 Gladiator suffers critical hit (Smash). 11628_ Structural Scanner destroyed. 11628_ System corrupted by crushing effect (+3). 11632_ B-48 Gladiator suffers critical hit (Smash). 11632_ Destroyed Rnf. Deuterium Engine. 11632_ Destroyed Imp. Light Armor Plating. 11632_ B-48 Gladiator system corrupted by crushing effect. 11633_ B-48 Gladiator system terminally corrupted. 11635_ Penetrated by Slug. 11641_ G-50 Soldier knocked back. 11643_ Penetrated by Slug. 11643_ Destroyed Targeting Computer. 11643_ X-62 Marksman system corrupted by crushing effect. 11646_ Penetrated by Slug. 11646_ X-62 Marksman destroyed. 11656_ Acquired Corrupted Imp. Carbon-fiber Leg. 11660_ Acquired Carbon-fiber Leg. Map ----- +----------------------------------------------------+ | # % # """ #???????# #???# | | #+#############+###% ######### ##### | | % % % % % # | | % # | | % + | | % # " | | % % %% # " | | #####% ###########+###################### # " | | ???## ### % % % # ## # " | | ???## T## # ## # | | ##### ## #?? ##+##### | | ## ### %% % #???? # | | ### ### """ #?????? ?# | | # ### """S #???????? ??# ]]! ! | | # % ### # # ]! | | # %%########################+############### | | # ##??? | | + % % ##??? | | # # ??? | | # % # ??? | | # # ??? | | # ###+######+######### # ??? | | ##### # # """" # % # ??? | | # "" + """" [%+! # ??? | | # "T #R"""" %#### + ??? | | # "" ! #R""""@ #### # ??? | | # # x """##??% # ??? | | + """ # g Y"##?? # ??? | | ##### ##### """ # """##?# ############ ??? | | ##### ##### """ # ##?? ############ ??? | | ???## #???# ############?? ##?????????????? | | ???## #???#####################??????????????????? | | ???## #??????????????????????????????????????????? | | ???## ??????????????????????????????????????????? | | ????# ??????????????????????????????????????????? | | ????# ??????????????????????????????????????????? | | ????# ?????????????????H??????????????H?????????? | | ????? ??????????????????????????????????????????? | | ????? !??????????????????????????????????????????? | | ????? ??????????????????????????????????????????? | | ?????##??????????????????????????????????????????? | | ?????????????????????????????????????????????????? | | ?????????????????????????????????????????????????? | | ?????????????????????????????????????????????????? | | ?????????????????????????????????????????????????? | | ?????????????????????????????????????????????????? | | ?????????????????????????????????????????????????? | | ?????????????????????????????????????????????????? | | ?????????????????????????????????????????????????? | | ?????????????????????????????????????????????????? | +----------------------------------------------------+ Best States ------------- Heat Dissipation 37 Energy Generation 32 Energy Capacity 675 Matter Stores 450 Matter Capacity 450 Sight Range 20 Robot Scan Range 15 Terrain Scan Range 14 Terrain Scan Density 10 Additional Mass Support 12 Armor Coverage 150 Resistance: KI 35 Resistance: TH 45 Resistance: EX 35 Resistance: EM 35 Resistance: I 35 Resistance: S 35 Resistance: P 35 Weapon Shielding 33 Evasion (%) 55 Targeting Accuracy 5 Recoil Reduction 2 Offensive Hacking 30 Defensive Hacking 10 Relay Coupler Types 4 Relay Coupler Value 173 Item Schematics ----------------- System Shield | -8/Materials | Scanalyzed Matter Filter | -8/Storage | Hacked Robot Schematics ------------------ None Fabricated ------------ Nothing Alien Tech Used ----------------- None Achievements -------------- Assimilation Complete \\IAMDERELICT Challenges ------------ None Game ------ Seed ModifiedBeamScreen Manual? 0 Play Time 02:49:16 Cumulative 29.8 hours Start 2022.04.05 @ 12:11:59 End 2022.04.07 @ 21:57:34 Sessions 12 Manual Loads 0 Difficulty Explorer Special Mode None Game No. 4 Rogue 0 Adventurer 0 Explorer 4 Win Type - Total 1 Types 1/0/0/0/0/0/0/0/0 Lore% 30 Gallery% 36 Achievement% 33 Wizard Run 0 Options --------- ASCII 0 Keyboard 0 Movement Arrows Keybinds 0 Fullscreen 2 Font 18/Terminus Map View 76x50 Tactical HUD 1 Map Filters NONE Filters NONE Steam 1 RUN: aed84fb2-bab1-4efd-a4a4-d056bd8ca77a